Cogmind - Beta 14 @@@ ROGUE MODE // 2025.01.10 @ 22:19:35 Player: Gimcond Result: Destroyed by Y-45 Defender with Beam Rifle Performance ------------- Evolutions (2) 1000 Regions Visited (4) 800 Robots Destroyed (29) 145 Value Destroyed (879) 879 Prototype IDs (1) 20 Alien Tech Used (0) 0 Bonus (151) 151 TOTAL SCORE: 2995 Bonus ------- Follower Combat Kills 151 Cogmind --------- Core Integrity 0/550 Matter 5/300 Energy 99/100 System Corruption 5% Temperature Cool (9) Movement Core (100) Ox1 Location -8/Storage Parts ------- > --- POWER (1) -------- (None) > --- PROPULSION (4) --- (None) > --- UTILITY (4) ------ Gravity Neutralizer Reflective Plating > --- WEAPON (2) ------- (None) > --- INVENTORY (5) ---- Utility Shielding Hardened Light Armor Plating Improved Light Armor Plating System Shield Pulse Rifle Peak State ------------ > --- POWER ------------ Light Nuclear Core > --- PROPULSION ------- Advanced Treads Advanced Treads Advanced Treads Advanced Treads > --- UTILITY ---------- Large Storage Unit Medium Matter Pod Improved Light Armor Plating System Shield > --- WEAPON ----------- Mini Grenade Launcher Mini Grenade Launcher > --- INVENTORY -------- VSS Leg Targeting Computer Improved Light Armor Plating Reflective Plating System Shield Pulse Rifle Autogun Flail [Rating: 29] Favorites ----------- Power Ion Engine Engine Ion Engine Power Core Light Nuclear Core Propulsion Aluminum Leg Treads Advanced Treads Leg Aluminum Leg Utility Medium Matter Pod Device Gravity Neutralizer Storage Medium Matter Pod Processor Signal Interpreter Hackware System Shield Protection Improved Light Armor Plating Weapon Mini Grenade Launcher Energy Gun Beam Rifle Ballistic Gun Assault Rifle Launcher Mini Grenade Launcher Impact Weapon Mace Build | -11 -10 -9 -8 -8 ------- Run | Yrd Mat Mat Mat Sto Slots Evolved 4 | . . 2 2 . Power . | . . . . . Propulsion 2 | . . 1 1 . Utility 2 | . . 1 1 . Weapon . | . . . . . Parts Attached 46 | 6 7 19 11 3 Power 5 | 1 1 2 1 . Engine 4 | 1 1 2 . . Core 1 | . . . 1 . Reactor . | . . . . . Propulsion 17 | 2 2 10 3 . Treads 5 | . . 3 2 . Leg 12 | 2 2 7 1 . Wheel . | . . . . . Hover . | . . . . . Flight . | . . . . . Utility 12 | 1 1 4 3 3 Device 1 | . . . . 1 Storage 4 | 1 . 1 2 . Processor 2 | . 1 . . 1 Hackware 1 | . . 1 . . Protection 4 | . . 2 1 1 Artifact . | . . . . . Weapon 12 | 2 3 3 4 . Energy Gun 4 | 1 2 1 . . Energy Cannon . | . . . . . Ballistic Gun 2 | 1 1 . . . Ballistic Cannon . | . . . . . Launcher 4 | . . 2 2 . Special Weapon . | . . . . . Impact Weapon 2 | . . . 2 . Slashing Weapon . | . . . . . Piercing Weapon . | . . . . . Special Melee Weapon . | . . . . . Unidentified Prototypes 1 | . . . . 1 Parts Lost 18 | . 4 6 7 1 Power 2 | . 1 . 1 . Propulsion 7 | . 1 3 3 . Utility 3 | . . . 2 1 Weapon 6 | . 2 3 1 . Highest Loss Streak 7 | . 4 5 7 1 To Critical Strikes . | . . . . . Average Slot Usage (%) 79 | . 93 88 72 23 Engine 6 | . 11 9 . . Core 1 | . . . 5 . Treads 8 | . . 2 22 . Leg 15 | . 26 25 1 . Storage 14 | . 14 19 10 . Processor 6 | . 12 9 . 7 Hackware 2 | . . . 7 . Protection 4 | . . 1 9 7 Energy Gun 6 | . 13 9 . . Ballistic Gun 3 | . 14 2 . . Launcher 7 | . . 6 13 . Peak Build Rating 29 | 6 8 19 29 11 Average Rating 13 | 3 7 11 21 9 On Entrance 6 | . 6 8 19 1 Naked Turns 77 | . . 29 43 5 Heaviest Build 54 | 8 12 54 32 4 Greatest Support 88 | 20 20 66 88 15 Greatest Overweight (x) 16 | . . 16 1 1 Average Overweight (x) . | . . 1 . . Largest Inventory Capacity 20 | 5 5 20 15 5 Average Capacity 11 | 5 5 18 9 5 Most Carried 19 | 3 5 19 8 5 Average Carried 6 | 2 3 10 5 4 Final Capacity 5 | 5 5 5 5 5 Final Carried 5 | 3 4 5 5 5 Class Distribution -------------------- 60% | Mutant 39% | Scavenger-Mutant Dominant Class ---------------- Mutant | -10/Materials Scavenger-Mutant | -9/Materials Mutant | -8/Materials Mutant | -8/Storage Resources | -11 -10 -9 -8 -8 ----------- Run | Yrd Mat Mat Mat Sto Matter Collected 494 | 276 56 136 26 . Remotely . | . . . . . Salvage Created 994 | 74 254 547 119 . Parts 57 | 5 18 28 6 . Haulers Intercepted 1 | . 1 . . . Recyclers Shooed 3 | . 1 . 2 . Parts Field Recycled . | . . . . . Retrieved Matter . | . . . . . Parts Self-Destructed . | . . . . . Prevented . | . . . . . Kills | -11 -10 -9 -8 -8 ------- Run | Yrd Mat Mat Mat Sto Combat Hostiles Destroyed 23 | 1 7 11 4 . Guns 15 | 1 7 7 . . AOE 8 | . . 4 4 . Classes Destroyed 8 | 2 2 4 . . Worker 2 | 1 . 1 . . Builder 1 | . . 1 . . Hauler 1 | . 1 . . . Recycler 1 | . . 1 . . Mechanic 1 | . . 1 . . Swarmer 3 | . 3 . . . Grunt 17 | 1 4 9 3 . Sentry 3 | . . 2 1 . Best Kill Streak 4 | 2 2 4 1 . Combat Bots Only 3 | 1 2 3 1 . Max Kills in Single Turn 4 | 1 1 4 1 . Gunslinging . | . . . . . Exploded 2 | . . 2 1 . Melee . | . . . . . Uniques/NPCs Destroyed . | . . . . . Combat | -11 -10 -9 -8 -8 -------- Run | Yrd Mat Mat Mat Sto Hostile Shots Fired 365 | 4 73 147 128 13 Missed 94 | 2 12 33 43 4 Damage Taken 3767 | 22 691 1511 1420 123 Core 1137 | 12 217 348 492 68 Absorbed by Shields . | . . . . . Ignored by Resistances 8 | . . . . 8 Regen/Repaired (Parts) 115 | . . . 115 . Core Remaining (%) 38 | 95 8 13 . . Volleys Fired 59 | 5 19 28 7 . Largest 2 | 2 2 2 2 . Hottest 98 | 60 76 98 60 . Shots Fired 104 | 10 38 44 12 . Gun 81 | 10 38 33 . . Cannon . | . . . . . Launcher 23 | . . 11 12 . Special . | . . . . . Kinetic 30 | 5 19 6 . . Thermal 46 | . 19 27 . . Explosive 23 | . . 11 12 . Electromagnetic 5 | 5 . . . . Robot Hit Streak 9 | 2 5 9 8 . Robot Miss Streak 3 | 2 3 3 1 . Penetration Max . | . . . . . Secondary Targets 3 | . 3 . . . Max Gunslinging Chain 1 | . 1 . . . Shots Hit Robots 61 | 5 20 25 11 . Core Hits 53 | 3 12 22 16 . Critical Kills . | . . . . . Critical Parts Destroyed 1 | . . . 1 . Critical Strikes 3 | 1 1 . 1 . Burn 1 | . 1 . . . Corrupt 1 | 1 . . . . Smash 1 | . . . 1 . Melee Attacks 8 | . . . 8 . Impact 8 | . . . 8 . Slashing . | . . . . . Piercing . | . . . . . Sneak Attacks . | . . . . . Combat Hostiles . | . . . . . Follow-up Attacks . | . . . . . Damage Inflicted 1850 | 65 307 859 619 . Guns 683 | 65 302 316 . . Cannons . | . . . . . Explosions 991 | . . 540 451 . Melee 134 | . . . 134 . Ramming 42 | . 5 3 34 . Kinetic 184 | 10 114 60 . . Thermal 444 | . 188 256 . . Explosive 991 | . . 540 451 . Electromagnetic 55 | 55 . . . . Impact 134 | . . . 134 . Slashing . | . . . . . Piercing . | . . . . . Highest Corruption 5 | . . . 5 5 Average Corruption 4 | . . . 3 5 Corruption Purged . | . . . . . Corruption Blocked . | . . . . . Effects 8 | . . . 3 5 Message Errors 3 | . . . . 3 Heat Flow Errors 1 | . . . . 1 Energy Discharges 2 | . . . 2 . Data Loss (minor) 2 | . . . 1 1 Overload Shots . | . . . . . Overflow Damage 41 | . . 2 39 . Projectiles . | . . . . . Explosions 2 | . . 2 . . Melee 39 | . . . 39 . Knockbacks 2 | . . . 2 . Impact 2 | . . . 2 . Kinetic . | . . . . . Secondary . | . . . . . Self-Inflicted Damage 223 | . . 141 82 . Shots 9 | . . 6 3 . Rammed 9 | . . 1 8 . Targets Rammed 13 | . 4 1 8 . Kicked 4 | . 4 . . . Crushed . | . . . . . Highest Temperature 283 | 46 283 133 16 243 Average Temperature 65 | 19 110 36 6 131 Received Heat Transfer 1437 | 12 345 171 855 54 Effects 1 | . . . . 1 Energy Bleed 1 | . . . . 1 Siege Activations . | . . . . . Robots Corrupted . | . . . . . Combat Hostiles . | . . . . . Parts Fried . | . . . . . Impact Corruptions 1 | . . . 1 . Robots Melted . | . . . . . Combat Hostiles . | . . . . . Parts Melted . | . . . . . Heat Transferred 1184 | . 555 629 . . Parts Sabotaged . | . . . . . Parts Stolen . | . . . . . Parts Stripped . | . . . . . Power Chain Reactions . | . . . . . Alert | -11 -10 -9 -8 -8 ------- Run | Yrd Mat Mat Mat Sto Peak Influence 347 | 25 198 347 216 221 Initial 93 | . 16 83 93 91 Average 120 | 6 109 149 106 146 Maximum Alert Level 1 | . . 1 1 1 Low Security (%) 80 | 100 100 61 92 65 Level 1 19 | . . 38 7 34 Level 2 . | . . . . . Level 3 . | . . . . . Level 4 . | . . . . . Level 5 . | . . . . . High Security . | . . . . . Max Security . | . . . . . Squads Dispatched 6 | . 1 1 2 2 Investigation 2 | . . 1 1 . Extermination . | . . . . . Reinforcement 2 | . 1 . 1 . Assault 2 | . . . . 2 Garrison . | . . . . . Intercept . | . . . . . Searches Triggered . | . . . . . Construction Impeded . | . . . . . Haulers Reinforced . | . . . . . Active Scanning Responses . | . . . . . Cargo Convoy Interrupts . | . . . . . Stealth | -11 -10 -9 -8 -8 --------- Run | Yrd Mat Mat Mat Sto Distress Signals 5 | . . 2 3 . Communications Jammed . | . . . . . Distress Signals . | . . . . . Times Spotted 57 | 1 9 24 22 1 Peak Tracking Total 9 | 1 4 7 9 1 Tactical Retreats 5 | . 1 1 3 . Traps | -11 -10 -9 -8 -8 ------- Run | Yrd Mat Mat Mat Sto Traps Triggered 7 | . 1 1 3 2 Indirectly . | . . . . . Trap Hack Attempts . | . . . . . Triggered . | . . . . . Disarmed . | . . . . . Reprogrammed . | . . . . . Reused . | . . . . . Traps Extracted . | . . . . . Installed . | . . . . . Triggered . | . . . . . Machines | -11 -10 -9 -8 -8 ---------- Run | Yrd Mat Mat Mat Sto Machines Disabled 3 | . . 3 . . Max in Single Turn 1 | . . 1 . . Machines Repaired . | . . . . . Machines Dismantled . | . . . . . Machines Sabotaged . | . . . . . Overloaded Fab Kills . | . . . . . Hacking | -11 -10 -9 -8 -8 --------- Run | Yrd Mat Mat Mat Sto Machines Accessed 6 | . 3 . 2 1 Terminals 4 | . 2 . 1 1 Fabricators . | . . . . . Repair Stations 1 | . . . 1 . Recycling Units 1 | . 1 . . . Scanalyzers . | . . . . . Garrison Access . | . . . . . Total Hacks 16 | . 10 . 5 1 Successful 10 | . 5 . 4 1 Failed 6 | . 5 . 1 . Catastrophic . | . . . . . Database Lockouts . | . . . . . Manual . | . . . . . Terminals 9 | . 6 . 2 1 Fabricators . | . . . . . Repair Stations 3 | . . . 3 . Recycling Units 4 | . 4 . . . Scanalyzers . | . . . . . Garrison Access . | . . . . . Terminal Hacks 6 | . 3 . 2 1 Record 2 | . 1 . 1 . Open Door 1 | . . . . 1 Alert Level 2 | . 2 . . . Hauler Manifests 1 | . . . 1 . Fabricator Hacks . | . . . . . Repair Station Hacks 2 | . . . 2 . Scan Component 1 | . . . 1 . Repair 1 | . . . 1 . Recycling Unit Hacks 2 | . 2 . . . Recycle Component 1 | . 1 . . . Process 1 | . 1 . . . Scanalyzer . | . . . . . Garrison Access Hacks . | . . . . . Unauthorized Hacks . | . . . . . Terminals . | . . . . . Fabricators . | . . . . . Repair Stations . | . . . . . Recycling Units . | . . . . . Scanalyzers . | . . . . . Garrison Access . | . . . . . Data Cores Recovered . | . . . . . Used . | . . . . . Hacking Detections 3 | . 2 . 1 . Full Trace Events . | . . . . . Feedback Events . | . . . . . Feedback Blocked . | . . . . . Robot Schematics Acquired . | . . . . . Robots Built . | . . . . . Authchips . | . . . . . Time . | . . . . . Total Robot Build Rating . | . . . . . Part Schematics Acquired . | . . . . . Parts Built . | . . . . . Authchips . | . . . . . Time . | . . . . . Total Part Build Rating . | . . . . . Parts Repaired 1 | . . . 1 . Time 38 | . . . 38 . Parts Recycled 1 | . 1 . . . Recycled Matter 263 | . 263 . . . Retrieved Matter . | . . . . . Retrieved Components . | . . . . . Parts Scanalyzed . | . . . . . Part Schematics Acquired . | . . . . . Parts Damaged . | . . . . . Bothacking | -11 -10 -9 -8 -8 ------------ Run | Yrd Mat Mat Mat Sto Used RIF Installer . | . . . . . Robots Hacked . | . . . . . Non-combat . | . . . . . Combat . | . . . . . Robot Hacks Applied . | . . . . . Relay Couplers Released . | . . . . . Fabnet Peak Effective % . | . . . . . Robots Rewired . | . . . . . Allies Hacked . | . . . . . Hacks Repelled . | . . . . . Allies | -11 -10 -9 -8 -8 -------- Run | Yrd Mat Mat Mat Sto Total Allies 2 | . . . . 2 Largest Group 2 | . . . . 2 Highest-Rated Group 62 | . . . . 62 Highest-Rated Ally 31 | . . . . 31 Total Orders . | . . . . . Ally Attacks 18 | . . . . 18 Total Damage 357 | . . . . 357 Kills 5 | . . . . 5 Allies Corrupted . | . . . . . Allies Melted . | . . . . . Intel | -11 -10 -9 -8 -8 ------- Run | Yrd Mat Mat Mat Sto Robot Analysis Total . | . . . . . Derelict Logs Recovered . | . . . . . Drone Launches . | . . . . . Drone Recoveries . | . . . . . Exploration | -11 -10 -9 -8 -8 ------------- Run | Yrd Mat Mat Mat Sto Turns Passed 2307 | 133 366 913 737 158 Spaces Moved 1364 | 91 234 412 489 138 Core 289 | 14 . 59 78 138 Treads 373 | . . 33 340 . Legs 702 | 77 234 320 71 . Wheels . | . . . . . Hover . | . . . . . Flight . | . . . . . Fastest Speed 50 | 50 120 50 50 50 Average Speed 137 | 109 120 186 126 82 Slowest Speed 850 | 120 120 850 225 100 Overloaded Moves . | . . . . . Propulsion Burnouts . | . . . . . Robots Hopped . | . . . . . Cave-ins Triggered . | . . . . . Exploration Rate (%) 26 | 6 36 40 40 12 Regions Visited 4 Branch Regions 1 Pre-discovered Areas . | . . . . . Known Exits Taken 1 | . 1 . . . Unknown Exits Taken 3 | 1 . 1 1 . Scrap Searched . | . . . . . Spaces Dug . | . . . . . Terrain Destroyed 153 | . . 89 64 . Melee . | . . . . . Projectile . | . . . . . AOE 153 | . . 89 64 . Terrain Rammed . | . . . . . Walls Destroyed . | . . . . . Machines Disabled . | . . . . . Actions | -11 -10 -9 -8 -8 --------- Run | Yrd Mat Mat Mat Sto Total 1660 | 114 280 505 579 182 Wait 101 | 4 12 32 45 8 Move 1360 | 90 233 411 488 138 Hop . | . . . . . Pick Up 29 | 6 4 10 7 2 Fast Attach 31 | 6 4 11 8 2 Attach 5 | . 2 . 2 1 Detach 2 | . . 1 1 . Swap 10 | . 1 8 1 . Drop 13 | 3 1 3 5 1 Fire 59 | 5 19 28 7 . Melee 7 | . . . 7 . Ram 5 | . . 1 4 . Kick 4 | . 4 . . . Crush 4 | . . . 4 . Escape Stasis 30 | . . . . 30 Rewire . | . . . . . Trap . | . . . . . Miscellaneous . | . . . . . Route ------- -11/Scrapyard -10/Materials -9/Materials -8/Materials -8/Storage History --------- Turn | Location | Event 2 | -11/Scrapyard | Met Revision 17 85 | -11/Scrapyard | Discovered new exit (range 8) 134 | -11/Scrapyard | Entered Materials 316 | -10/Materials | Build established: Mutant 325 | -10/Materials | Core integrity fell below 50% 335 | -10/Materials | Core integrity fell below 20% 357 | -10/Materials | Lost 4 parts (1p1n2w) 400 | -10/Materials | Discovered new exit (range 14) 436 | -10/Materials | Identified exit to Materials 500 | -10/Materials | Entered another Materials area 500 | -9/Materials | Evolved 2 slots: Propulsion x1, Utility x1 674 | -9/Materials | Build established: Scavenger-Mutant 1312 | -9/Materials | Core integrity fell below 50% 1319 | -9/Materials | Released all parts (3) 1348 | -9/Materials | Lost 5 parts (3n2w) 1372 | -9/Materials | Core integrity fell below 20% 1389 | -9/Materials | Discovered new exit (range 15) 1413 | -9/Materials | Entered another Materials area 1413 | -8/Materials | Evolved 2 slots: Propulsion x1, Utility x1 1588 | -8/Materials | Build established: Mutant 1867 | -8/Materials | Repaired Adv. Treads 1995 | -8/Materials | Released all parts (4) 2023 | -8/Materials | Lost 7 parts (1p3n2u1w) 2052 | -8/Materials | Core integrity fell below 50% 2132 | -8/Materials | Released all parts (3) 2136 | -8/Materials | Core integrity fell below 20% 2142 | -8/Materials | Discovered new exit (range 16) 2150 | -8/Materials | Entered Storage 2172 | -8/Storage | Met a pair of Derelict thieves 2308 | -8/Storage | Destroyed by Y-45 Defender with Beam Rifle Last Messages --------------- 02242_ Field strength at 64. 02243_ Field strength at 58. 02244_ Field strength at 52. 02245_ Field strength at 46. 02246_ Field strength at 40. 02246_ 6G-W1M(g) destroyed. 02247_ Field strength at 34. 02248_ Field strength at 28. 02248_ U-05 Engineer destroyed. 02249_ Field strength at 22. 02250_ Field strength at 16. 02251_ Field strength at 10. 02252_ Field strength at 4. 02252_ UB-6ZP(g) destroyed. 02253_ Stasis field depleted. 02264_ System corrupted: Heat flow error (+271). 02265_ Overheating: Energy bleed (-16). 02279_ LW =1/G5J4NQO7LWC7GI:ZQLRUBR 02296_ Targeting Computer destroyed. 02299_ Critical hit (Burn: +37). Map ----- +----------------------------------------------------+ | ????????????????????????????? | | ???#####????????????????????? | | ???# #????????????????????? | | ???# #????????????????????? | | ???# #????????????????????? | | ???# #????????????????????? | | ???# #????????????????????? | | ???# #####????????????????? | | ???# + #????????????????? | | ???# #T###????????????????? | | ???# ###??????????????????? | | ???# #????????????????????? | | ???# #????????????????????? | | ???# #????????????????????? | | ???# #????????????????????? | | ???# #????????????????????? | | ???# #????????????????????? | | ???# #????????????????????? | | ???# #????????????????????? | | ???# #????????????????????? | | ???# #????????????????????? | | ???# #????????????????????? | | ???# #????????????????????? | | ???# #??######????????????? | | ???# #### ! #????????????? | | ???#@ ##T# !! #????????????? | | ???# # " #????????????? | | ???# + #????????????? | | ???# Y# " ! #????????????? | | ???# # #! !!#????????????? | | ???# #########????????????? | | ???# #????????????????????? | | ???# #????????????????????? | | ???# #????????????????????? | | ???# #????????????????????? | | ???# #????????????????????? | | ???# #????????????????????? | | ???#^ #????????????????????? | | ???#^^ #########????????????? | | ???#!%!=%=! !/% =%! ?????? | | ???# * !=%! %*= %=!*=[ ?????? | | ???# ** / =%* "%"?????? | | ???###################??????? | | ????????????????????????????? | | ????????????????????????????? | | ????????????????????????????? | | ????????????????????????????? | | ????????????????????????????? | | ????????????????????????????? | | ????????????????????????????? | +----------------------------------------------------+ Best States ------------- Heat Dissipation 31 Energy Generation 14 Energy Capacity 250 Matter Stores 400 Matter Capacity 400 Sight Range 16 Terrain Scan Density 10 Additional Mass Support 12 Armor Coverage 300 Resistance: TH 10 Evasion (%) 55 Targeting Accuracy 5 Recoil Reduction 4 Defensive Hacking 10 Item Schematics ----------------- None Robot Schematics ------------------ None Fabricated ------------ Nothing Alien Tech Used ----------------- None Achievements -------------- Close Call Challenges ------------ None Game ------ Seed DeuteriumSpreadRailgun Manual? 0 Play Time 00:33:32 Cumulative 10.1 hours Start 2025.01.10 @ 21:47:14 End 2025.01.10 @ 22:19:35 Sessions 1 Manual Loads 0 Difficulty Rogue Special Mode None Game No. 30 Rogue 30 Adventurer 0 Explorer 0 Win Type - Total 0 Types 0/0/0/0/0/0/0/0/0 Lore% 11 Gallery% 15 Achievement% 17 Wizard Run 0 Options --------- Layout 1 ASCII 1 Keyboard 1 Movement Numpad Keybinds 0 Fullscreen 1 Font 24/Smallcaps Map View 50x35 Zoom Use 0% Tactical HUD 1 Map Filters NONE Filters NONE Steam 1 RUN: c0192c24-9fbf-48be-b08a-76e38a9b45a4